Cogmind - Beta 15 @@@ ROGUE MODE // 2025.07.07 @ 21:56:39 Player: Cracklepappy Result: Destroyed by Y-54 Guardian with Gatling Laser Performance ------------- Evolutions (0) 0 Regions Visited (3) 600 Robots Destroyed (46) 230 Value Destroyed (990) 990 Prototype IDs (12) 240 Alien Tech Used (0) 0 Bonus (0) 0 TOTAL SCORE: 2060 Bonus ------- None Cogmind --------- Core Integrity 0/250 Matter 207/300 Energy 81/200 System Corruption 0% Temperature Critical (547) Movement Rolling (130) Ox2 Location -7/Recycling Parts ------- > --- POWER (1) -------- Subdweller Power Source > --- PROPULSION (2) --- Subdweller Monowheel > --- UTILITY (2) ------ High-capacity Storage Unit > --- WEAPON (2) ------- Subdweller Machine Gun Subdweller Machine Gun > --- INVENTORY (20) --- Arachnoskeleton Flightbrick Subdweller Optics Seismic Detector Cobbler Unit Subdweller Laser Subdweller Beam Cannon Rocket Launcher Dirty Datajack (20) Multitool Ripper Peak State ------------ > --- POWER ------------ Cooled Ion Engine > --- PROPULSION ------- Light Treads Spiked Treads > --- UTILITY ---------- High-capacity Storage Unit Makeshift Light Armor Plating > --- WEAPON ----------- Subdweller Beam Cannon Subdweller Beam Cannon > --- INVENTORY -------- Subdweller Power Source Arachnoskeleton Subdweller Monowheel Flightbrick Structural Scanner Subdweller Optics Seismic Detector Subdweller Laser Subdweller Beam Cannon Subdweller Machine Gun Subdweller Machine Gun Rocket Launcher Dirty Datajack Multitool Ripper [Rating: 23] Favorites ----------- Power Cooled Ion Engine Engine Cooled Ion Engine Propulsion Light Treads Treads Light Treads Leg Aluminum Leg Wheel Compact Wheel Utility High-capacity Storage Unit Device Seismic Detector Storage High-capacity Storage Unit Protection Makeshift Light Armor Plating Weapon Subdweller Beam Cannon Energy Cannon Subdweller Beam Cannon Ballistic Gun Shotgun Ballistic Cannon Battle Cannon Impact Weapon Flail Build | -11 -10 -10 -7 ------- Run | Yrd Mat Sub Rec Slots Evolved . | . . . . Power . | . . . . Propulsion . | . . . . Utility . | . . . . Weapon . | . . . . Parts Attached 36 | 7 5 21 3 Power 4 | 1 1 2 . Engine 4 | 1 1 2 . Core . | . . . . Reactor . | . . . . Propulsion 8 | 2 . 5 1 Treads 4 | 2 . 2 . Leg 2 | . . 2 . Wheel 2 | . . 1 1 Hover . | . . . . Flight . | . . . . Utility 8 | 2 2 4 . Device 4 | 1 . 3 . Storage 3 | 1 2 . . Processor . | . . . . Hackware . | . . . . Protection 1 | . . 1 . Artifact . | . . . . Weapon 16 | 2 2 10 2 Energy Gun . | . . . . Energy Cannon 6 | . . 6 . Ballistic Gun 8 | 2 2 2 2 Ballistic Cannon 1 | . . 1 . Launcher . | . . . . Special Weapon . | . . . . Impact Weapon 1 | . . 1 . Slashing Weapon . | . . . . Piercing Weapon . | . . . . Special Melee Weapon . | . . . . Unidentified Prototypes 1 | . 1 . . Parts Lost 6 | . . 1 5 Power . | . . . . Propulsion 3 | . . 1 2 Utility 1 | . . . 1 Weapon 2 | . . . 2 Highest Loss Streak 5 | . . 1 5 To Critical Strikes . | . . . . Average Backups 15 | 6 14 15 13 Power 1 | . 1 1 . Propulsion 3 | 3 3 3 2 Utility 3 | . 3 3 3 Weapon 6 | 1 6 6 5 Tool/Special . | . . . . Unused Backups 25 | . 7 10 8 Power 2 | . 1 1 . Propulsion 3 | . 1 . 2 Utility 6 | . 3 2 1 Weapon 12 | . 2 7 3 Tool/Special 2 | . . . 2 Average Slot Usage (%) 99 | . 99 99 98 Engine 14 | . 14 14 14 Treads 25 | . 27 25 26 Leg 2 | . . 2 . Device 13 | . 14 13 . Storage 14 | . 14 14 14 Energy Cannon 16 | . . 20 27 Ballistic Gun 10 | . 28 6 . Peak Build Rating 23 | 7 14 23 22 Average Rating 17 | 5 12 18 21 On Entrance 10 | . 7 14 22 Naked Turns . | . . . . Heaviest Build 65 | 12 55 65 65 Greatest Support 40 | 40 40 40 40 Greatest Overweight (x) 3 | . 1 3 3 Average Overweight (x) . | . . 1 1 Largest Inventory Capacity 20 | 8 20 20 20 Average Capacity 18 | 7 16 20 20 Most Carried 20 | 8 20 20 20 Average Carried 18 | 6 14 19 19 Final Capacity 20 | 8 20 20 20 Final Carried 20 | 8 20 20 17 Class Distribution -------------------- 100% | Mutant Dominant Class ---------------- Mutant | -10/Materials Mutant | -10/Subcaves Mutant | -7/Recycling Resources | -11 -10 -10 -7 ----------- Run | Yrd Mat Sub Rec Matter Collected 1261 | 362 412 487 . Remotely . | . . . . Salvage Created 1512 | 201 474 752 85 Parts 99 | 19 33 46 1 Haulers Intercepted 2 | . 2 . . Recyclers Shooed . | . . . . Parts Field Recycled . | . . . . Retrieved Matter . | . . . . Parts Self-Destructed 13 | . . 13 . Prevented . | . . . . Kills | -11 -10 -10 -7 ------- Run | Yrd Mat Sub Rec Combat Hostiles Destroyed 29 | . 11 17 1 Guns 20 | . 11 9 . Cannons 9 | . . 8 1 Classes Destroyed 12 | 3 5 3 1 Worker 4 | 2 1 . 1 Tunneler 6 | 6 . . . Hauler 2 | . 2 . . Recycler 3 | 1 2 . . Operator 1 | . 1 . . Watcher 1 | . 1 . . Swarmer 9 | . 9 . . Grunt 3 | . 2 1 . Sentry 1 | . . 1 . Demolisher 1 | . . . 1 Cobbler 1 | . . 1 . Subdweller 15 | . . 15 . Best Kill Streak 4 | 2 4 2 2 Combat Bots Only 3 | . 3 2 1 Max Kills in Single Turn 2 | 1 2 1 1 Gunslinging . | . . . . Exploded . | . . . . Melee . | . . . . Uniques/NPCs Destroyed . | . . . . Combat | -11 -10 -10 -7 -------- Run | Yrd Mat Sub Rec Hostile Shots Fired 153 | . 36 82 35 Missed 38 | . 10 21 7 Hits 115 | . 26 61 28 Projectile 115 | . 26 61 28 AOE 13 | . . . 13 Critical Strikes 3 | . . 3 . Damage Taken 2053 | . 222 1183 648 Core 256 | . 21 144 91 Absorbed by Shields . | . . . . Regen/Repaired (Parts) 148 | . 148 . . Core Remaining (%) 100 | 100 . . . Volleys Fired 127 | 23 31 64 9 Largest 2 | 2 2 2 2 Hottest 160 | 40 46 160 160 Shots Fired 229 | 46 62 106 15 Gun 156 | 46 62 45 3 Cannon 73 | . . 61 12 Launcher . | . . . . Special . | . . . . Kinetic 156 | 46 62 45 3 Thermal 73 | . . 61 12 Explosive . | . . . . Electromagnetic . | . . . . Robot Hit Streak 20 | 12 8 20 3 Robot Miss Streak 6 | 2 6 3 2 Penetration Max . | . . . . Secondary Targets 3 | . 2 1 . Max Gunslinging Chain 1 | . 1 1 . Shots Hit Robots 152 | 27 43 74 8 Core Hits 75 | 11 25 35 4 Critical Kills . | . . . . Critical Parts Destroyed 1 | 1 . . . Critical Strikes 1 | 1 . . . Destroy 1 | 1 . . . Melee Attacks 21 | . . 21 . Impact 21 | . . 21 . Slashing . | . . . . Piercing . | . . . . Sneak Attacks . | . . . . Combat Hostiles . | . . . . Follow-up Attacks . | . . . . Damage Inflicted 2885 | 289 633 1666 297 Guns 1632 | 289 620 701 22 Cannons 1240 | . . 965 275 Explosions . | . . . . Melee . | . . . . Ramming 13 | . 13 . . Kinetic 1632 | 289 620 701 22 Thermal 1240 | . . 965 275 Explosive . | . . . . Electromagnetic . | . . . . Impact . | . . . . Slashing . | . . . . Piercing . | . . . . Highest Corruption . | . . . . Average Corruption . | . . . . Corruption Purged . | . . . . Corruption Blocked . | . . . . Overload Shots . | . . . . Overflow Damage 29 | . . 19 10 Projectiles 29 | . . 19 10 Explosions . | . . . . Melee . | . . . . Knockbacks . | . . . . Impact . | . . . . Kinetic . | . . . . Secondary . | . . . . Self-Inflicted Damage . | . . . . Shots . | . . . . Rammed 3 | . 3 . . Targets Rammed 3 | . 3 . . Kicked . | . . . . Crushed . | . . . . Highest Temperature 594 | . . 259 594 Average Temperature 150 | . . 64 392 Received Heat Transfer 557 | . 18 491 48 Effects 8 | . . . 8 Shutdowns 1 | . . . 1 Interference 1 | . . . 1 Matter Decay 2 | . . . 2 Short Circuit 1 | . . . 1 Damage (major) 3 | . . . 3 Siege Activations . | . . . . Martial Activations . | . . . . Shielding Activations . | . . . . Robots Disrupted . | . . . . Combat Hostiles . | . . . . Robots Corrupted . | . . . . Combat Hostiles . | . . . . Parts Fried . | . . . . Impact Corruptions . | . . . . Robots Melted . | . . . . Combat Hostiles . | . . . . Parts Melted 4 | . . 4 . Heat Transferred 1444 | . . 1184 260 Parts Sabotaged . | . . . . Parts Stolen . | . . . . Parts Stripped . | . . . . Power Chain Reactions . | . . . . Alert | -11 -10 -10 -7 ------- Run | Yrd Mat Sub Rec Maximum Alert Level . | . . . . Low Security (%) 100 | 100 100 . 100 Level 1 . | . . . . Level 2 . | . . . . Level 3 . | . . . . Level 4 . | . . . . Level 5 . | . . . . High Security . | . . . . Max Security . | . . . . Peak Influence 103 | 5 103 . 30 Initial 28 | . . . 28 Average 22 | 1 28 . 5 Influence Increases 633 | 45 390 130 68 Destroy 0b10 Robot/C 280 | . 220 40 20 Destroy 0b10 Robot/NC 90 | 45 35 . 10 Destroy Leader 56 | . 56 . . Successful Hack 55 | . 19 . 36 Select Force Hacks 60 | . 60 . . Destroy Structure 2 | . . . 2 Lose Combat Pursuer 90 | . . 90 . Influence Decreases 633 | 45 331 129 128 Entered New Map 61 | . . 29 32 Time Decay 548 | 45 331 100 72 Lost Part 24 | . . . 24 Squads Dispatched 3 | . 3 . . Investigation 2 | . 2 . . Extermination . | . . . . Reinforcement 1 | . 1 . . Assault . | . . . . Garrison . | . . . . Intercept . | . . . . Searches Triggered . | . . . . Construction Impeded . | . . . . Haulers Reinforced . | . . . . Active Scanning Responses . | . . . . Cargo Convoy Interrupts . | . . . . Stealth | -11 -10 -10 -7 --------- Run | Yrd Mat Sub Rec Distress Signals . | . . . . Communications Jammed . | . . . . Distress Signals . | . . . . Times Spotted 46 | . 15 26 5 Peak Tracking Total 4 | . 3 3 4 Tactical Retreats 3 | . . 3 . Traps | -11 -10 -10 -7 ------- Run | Yrd Mat Sub Rec Traps Triggered 1 | . . 1 . Indirectly . | . . . . Trap Hack Attempts . | . . . . Triggered . | . . . . Disarmed . | . . . . Reprogrammed . | . . . . Reused . | . . . . Traps Extracted . | . . . . Installed . | . . . . Triggered . | . . . . Machines | -11 -10 -10 -7 ---------- Run | Yrd Mat Sub Rec Machines Disabled 1 | . . 1 . Max in Single Turn 1 | . . 1 . Machines Repaired . | . . . . Machines Dismantled . | . . . . Machines Sabotaged . | . . . . Overloaded Fab Kills . | . . . . Hacking | -11 -10 -10 -7 --------- Run | Yrd Mat Sub Rec Machines Accessed 13 | . 8 2 3 Terminals 8 | . 5 . 3 Fabricators . | . . . . Repair Stations 1 | . 1 . . Recycling Units 2 | . 2 . . Scanalyzers . | . . . . Garrison Access . | . . . . Total Hacks 43 | . 28 6 9 Successful 27 | . 17 6 4 Failed 14 | . 10 . 4 Catastrophic 2 | . 2 . . Database Lockouts 2 | . 1 . 1 Manual 21 | . 16 . 5 Terminals 28 | . 19 . 9 Fabricators . | . . . . Repair Stations 6 | . 6 . . Recycling Units 3 | . 3 . . Scanalyzers . | . . . . Garrison Access . | . . . . Terminal Hacks 14 | . 4 6 4 Record 5 | . . 5 . Part Schematic 3 | . . . 3 Robot Schematic 1 | . 1 . . Robot Analysis 2 | . 2 . . Locate Traps 1 | . 1 . . Zone Layout 1 | . . . 1 Proto ID Catalog 1 | . . 1 . Fabricator Hacks . | . . . . Repair Station Hacks 6 | . 6 . . Scan Component 3 | . 3 . . Repair 3 | . 3 . . Recycling Unit Hacks . | . . . . Scanalyzer . | . . . . Garrison Access Hacks . | . . . . Unauthorized Hacks 7 | . 7 . . Terminals 5 | . 5 . . Skim 5 | . 5 . . Fabricators . | . . . . Repair Stations . | . . . . Recycling Units 2 | . 2 . . Tunnel 2 | . 2 . . Scanalyzers . | . . . . Garrison Access . | . . . . Data Cores Recovered . | . . . . Used . | . . . . Hacking Detections 8 | . 5 . 3 Full Trace Events . | . . . . Feedback Events . | . . . . Feedback Blocked . | . . . . Robot Schematics Acquired 1 | . 1 . . Robots Built . | . . . . Authchips . | . . . . Time . | . . . . Total Robot Build Rating . | . . . . Part Schematics Acquired 3 | . . . 3 Parts Built . | . . . . Authchips . | . . . . Time . | . . . . Total Part Build Rating . | . . . . Parts Repaired 3 | . 3 . . Time 78 | . 78 . . Parts Recycled . | . . . . Recycled Matter . | . . . . Retrieved Matter . | . . . . Retrieved Components . | . . . . Parts Scanalyzed . | . . . . Part Schematics Acquired . | . . . . Parts Damaged . | . . . . Bothacking | -11 -10 -10 -7 ------------ Run | Yrd Mat Sub Rec Used RIF Installer . | . . . . Robots Hacked . | . . . . Non-combat . | . . . . Combat . | . . . . Robot Hacks Applied . | . . . . Relay Couplers Released . | . . . . Fabnet Peak Effective % . | . . . . Robots Rewired . | . . . . Allies Hacked . | . . . . Hacks Repelled . | . . . . Allies | -11 -10 -10 -7 -------- Run | Yrd Mat Sub Rec Total Allies . | . . . . Largest Group . | . . . . Highest-Rated Group . | . . . . Highest-Rated Ally . | . . . . Total Orders . | . . . . Ally Attacks . | . . . . Total Damage . | . . . . Kills . | . . . . Allies Corrupted . | . . . . Allies Melted . | . . . . Intel | -11 -10 -10 -7 ------- Run | Yrd Mat Sub Rec Active Infowar (turns) 11782 | 13 2368 9401 . Optics 155 | . . 155 . Structural 3871 | . . 3871 . Seismic 7756 | 13 2368 5375 . Robot Analysis Total 2 | . 2 . . Derelict Logs Recovered 3 | . . 3 . Drone Launches . | . . . . Drone Recoveries . | . . . . Exploration | -11 -10 -10 -7 ------------- Run | Yrd Mat Sub Rec Turns Passed 12750 | 335 2368 9581 466 Spaces Moved 4935 | 161 1102 3496 176 Core 4 | 4 . . . Treads 4651 | 157 1102 3217 175 Legs 273 | . . 273 . Wheels 7 | . . 6 1 Hover . | . . . . Flight . | . . . . Fastest Speed 50 | 50 160 145 140 Average Speed 235 | 157 188 252 249 Slowest Speed 330 | 160 240 330 250 Overloaded Moves . | . . . . Propulsion Burnouts . | . . . . Robots Hopped . | . . . . Potential Cave-ins . | . . . . Cave-ins Triggered . | . . . . Exploration Rate (%) 58 | 8 99 98 28 Regions Visited 3 Branch Regions 2 Pre-discovered Areas 3 | . 2 1 . Known Exits Taken . | . . . . Unknown Exits Taken 3 | 1 1 1 . Scrap Searched 10 | . . 10 . Spaces Dug 7 | . . 7 . Terrain Destroyed 12 | . . 10 2 Melee . | . . . . Projectile 12 | . . 10 2 AOE . | . . . . Terrain Rammed . | . . . . Walls Destroyed . | . . . . Machines Disabled . | . . . . Actions | -11 -10 -10 -7 --------- Run | Yrd Mat Sub Rec Total 5831 | 198 1330 4114 189 Wait 620 | . 158 461 1 Move 4932 | 160 1101 3495 176 Hop . | . . . . Pick Up 48 | 8 20 20 . Fast Attach 12 | 7 3 2 . Attach 9 | . . 6 3 Detach . | . . . . Swap 22 | . 4 18 . Drop 37 | . 10 27 . Fire 127 | 23 31 64 9 Melee 21 | . . 21 . Ram . | . . . . Kick . | . . . . Crush 3 | . 3 . . Escape Stasis . | . . . . Rewire . | . . . . Trap . | . . . . Miscellaneous . | . . . . Route ------- -11/Scrapyard -10/Materials (discovered 5 exits: *Mat x3 / [*Min] / *Sub) -10/Subcaves (discovered 3 exits: *Mat x2 / *Rec) -7/Recycling History --------- Turn | Location | Event 8 | -11/Scrapyard | Discovered new exit (range 15) 336 | -11/Scrapyard | Entered Materials 337 | -10/Materials | Met a group of wandering Federalists 396 | -10/Materials | Build established: Mutant 585 | -10/Materials | Discovered new exit (range 9) 835 | -10/Materials | Discovered new exit (range 10) 1203 | -10/Materials | Central database locked down 1324 | -10/Materials | Discovered new exit (range 10) 1458 | -10/Materials | Discovered new exit (range 14) 1554 | -10/Materials | Identified exit to Materials 1669 | -10/Materials | Learned location of 2 exits from Materials 1741 | -10/Materials | Loaded intel: 22 trap records 1802 | -10/Materials | Learned Recycling recycling unit intel 2547 | -10/Materials | Repaired Lgt. Treads 2575 | -10/Materials | Repaired Lgt. Treads 2602 | -10/Materials | Repaired Lgt. Treads 2704 | -10/Materials | Entered Subcaves 2705 | -10/Subcaves | Continued accompanying wandering Federalists (5) 2705 | -10/Subcaves | Approached by a straggling Scientist 2705 | -10/Subcaves | Identified exit to Materials 2862 | -10/Subcaves | Discovered new exit (range 14) 2884 | -10/Subcaves | Lost 8 allies 2979 | -10/Subcaves | Ambushed by Subdwellers from Twisted Machinery 3795 | -10/Subcaves | A swath of the cavern ceiling suddenly collapsed 3796 | -10/Subcaves | A swath of the cavern ceiling suddenly collapsed 4621 | -10/Subcaves | A Subdweller sparked back to life 4621 | -10/Subcaves | A Subdweller sparked back to life 4621 | -10/Subcaves | A Subdweller sparked back to life 4661 | -10/Subcaves | Found Prototype Flight Unit 4930 | -10/Subcaves | Shifting Twisted Machinery released Sub. Beam Cannon 4938 | -10/Subcaves | Shifting Twisted Machinery released Piercing Trap 5017 | -10/Subcaves | Learned 2 Materials zone layouts 5080 | -10/Subcaves | Shifting Twisted Machinery released Piercing Trap 5224 | -10/Subcaves | Disturbed a concealed Subdweller 5491 | -10/Subcaves | Visited 4L-MR0's lab 5523 | -10/Subcaves | Identified Flightbrick 5543 | -10/Subcaves | Found Arachnoskeleton 5900 | -10/Subcaves | Learned location of Zion (-6) 6017 | -10/Subcaves | Core integrity fell below 50% 6445 | -10/Subcaves | Visited Clippyterm 6452 | -10/Subcaves | Learned Factory trap positions 6507 | -10/Subcaves | Learned location of 1 exit from Materials 6606 | -10/Subcaves | Shifting Twisted Machinery released Shrapnel Trap 10584 | -10/Subcaves | Disturbed a concealed Subdweller 12285 | -10/Subcaves | Entered Recycling 12286 | -7/Recycling | Loaded intel: 7 recycling unit locations 12749 | -7/Recycling | Core integrity fell below 20% 12751 | -7/Recycling | Destroyed by Y-54 Guardian with Gatling Laser Last Messages --------------- 12740_ U-05 Engineer lays Concrete. 12742_ Sub. Beam Cannon broken. 12742_ Overheating: Short circuit. 12742_ U-05 Engineer lays Concrete. 12742_ U-05 Engineer destroyed. 12743_ The unstable cave ceiling collapses. 12744_ Sub. Beam Cannon destroyed. 12745_ The unstable cave ceiling collapses. 12745_ Y-54 Guardian springs to life. 12747_ The unstable cave ceiling collapses. 12748_ Overheating: System interference. 12748_ Sub. Machine Gun temporarily disabled. 12748_ The unstable cave ceiling collapses. 12748_ Mak. Light Armor Plating destroyed. 12748_ Broken Sub. Beam Cannon destroyed. 12750_ Power failure, Sub. Power Source shutdown. 12750_ Overheating: Matter decay (-30). 12750_ R-06 Scavenger collects Com. Wheel. 12751_ Overheating: Matter decay (-42). 12751_ The unstable cave ceiling collapses. Map ----- +----------------------------------------------------+ | #?????????????????????????????????????????????? | | #?????????????????????????????????????????????? | | #?????????????????????????????????????????????? | | +#########???????????????????????????????????????? | | #???????????????????????????????????????? | | #???????????????????????????????????????? | | #???????????????????????????????????????? | | #???????????????????????????????????????? | | #???????????????????????????????????????? | | #???????????????????????????????????????? | | #???????????????????????????????????????? | | #???????????????????????????????????????? | | #???????????????????????????????????????? | | #???????????????????????????????????????? | | #???????????????????????????????????????? | | #???????????????????????????????????????? | | ##+##+#########??????????????????????????????????? | | #???#"""#?????????????#####????????????????? | | #???#"Y"#?????????##### ##???????????????? | | #####" "########### ## # ???????????????? | | # # # # ???????????????? | | # """"" # # ???????????????? | | # """"" "T"" # ???????????????? | | / """"" """" + ???????????????? | | # # ???????????????? | | ############### @ Y # ???????????????? | | #????????????# # ???????????????? | | #??????????# ##???????????????? | | #####??????# % #????????????????? | | #??????# dd #????????????????? | | #??????# !%Yp% =%# #????????????????? | | #??????# %%=%%! *# ##???????????????? | | #### #########r* !i% # ???????????????? | | #??# + k%i k %+ ??????????????? | | #??####### ###g | a # ?????????????? | | #???????## ###k! ! r# ???????????? | | #???????# ###+##+##;## #####????????????? | | ##+###?????# #????????????????? | | # #?????# ### #????##????#????????????????? | | # " #?????#####???????????????????????????????? | | # T #?????????????????????????????????????????? | | # " #?????????????????????????????????????????? | | # #???????"""???????????????????????????????? | | + #???????"Y"???????????????????????????????? | | # #???????"?"???????????????????????????????? | | # #?????????????????????????????????????????? | | # #?????????????????????????????????????????? | | ### #?????????????????????????????????????????? | | ??# #?????????????????????????????????????????? | | ??######?????????????????????????????????????????? | +----------------------------------------------------+ Best States ------------- Heat Dissipation 25 Energy Generation 15 Energy Capacity 280 Matter Stores 300 Matter Capacity 300 Sight Range 21 Terrain Scan Density 10 Armor Coverage 100 Evasion (%) 40 Recoil Reduction 2 Item Schematics ----------------- Adv. Recoil Stabilizer | -7/Recycling | Hacked Arm. Huge Wheel | -7/Recycling | Hacked Lgt. Treads | -7/Recycling | Hacked Robot Schematics ------------------ M-13 Machinist | -10/Materials | Hacked Fabricated ------------ Nothing Repaired ---------- Lgt. Treads | 60% | -10/Materials Lgt. Treads | 66% | -10/Materials Lgt. Treads | 67% | -10/Materials Alien Tech Used ----------------- None Achievements -------------- None Challenges ------------ None Game ------ Seed SupersonicAlphaShotgun Manual? 0 Play Time 00:39:12 Cumulative 1024.5 hours Start 2025.07.06 @ 01:47:44 End 2025.07.07 @ 21:56:39 Sessions 3 Manual Loads 0 Difficulty Rogue Special Mode None Game No. 517 Rogue 517 Adventurer 0 Explorer 0 Win Type - Total 23 Types 10/4/3/0/1/1/2/2/0/0 Lore% 88 Gallery% 89 Achievement% 83 Wizard Run 0 Options --------- Layout 0 ASCII 0 Keyboard 0 Movement Numpad Keybinds 0 Fullscreen 2 Font 24/Smallcaps Map View 76x50 Zoom Use 0% Tactical HUD 1 Map Filters NONE Filters SHIFT_HUE(315) Steam 1 RUN: d3ed0019-fbeb-4a6c-8e31-aa2efa3760f6